Cogmind - Beta 15 @@@ ROGUE MODE // 2025.05.09 @ 16:11:18 Player: Heclapar Result: Destroyed by YE-G0N(R) with Subdweller Laser Performance ------------- Evolutions (0) 0 Regions Visited (2) 400 Robots Destroyed (26) 130 Value Destroyed (632) 632 Prototype IDs (4) 80 Alien Tech Used (0) 0 Bonus (14) 14 TOTAL SCORE: 1256 Bonus ------- High Alert Combat Kills 14 Cogmind --------- Core Integrity 0/250 Matter 46/300 Energy 100/100 System Corruption 0% Temperature Cool (6) Movement Core (700) Ox13 Location -10/Subcaves Parts ------- > --- POWER (1) -------- (None) > --- PROPULSION (2) --- (None) > --- UTILITY (2) ------ High-capacity Storage Unit > --- WEAPON (2) ------- (None) > --- INVENTORY (20) --- Ion Engine Ion Engine Subdweller Power Source Heat Sink Small Storage Unit Large Storage Unit Grenade Launcher Peak State ------------ > --- POWER ------------ Ion Engine > --- PROPULSION ------- Light Treads Subdweller Monowheel > --- UTILITY ---------- High-capacity Storage Unit > --- WEAPON ----------- EM Pulse Gun Battle Cannon > --- INVENTORY -------- Ion Engine Ion Engine Subdweller Power Source Heat Sink Small Storage Unit Large Storage Unit Grenade Launcher [Rating: 8] Favorites ----------- Power Ion Engine Engine Ion Engine Propulsion Aluminum Leg Treads Light Treads Leg Aluminum Leg Wheel Subdweller Monowheel Utility High-capacity Storage Unit Device Terrain Scanner Storage High-capacity Storage Unit Weapon Assault Rifle Energy Gun EM Pulse Gun Ballistic Gun Assault Rifle Ballistic Cannon Battle Cannon Launcher Grenade Launcher Build | -11 -10 -10 ------- Run | Yrd Mat Sub Slots Evolved . | . . . Power . | . . . Propulsion . | . . . Utility . | . . . Weapon . | . . . Parts Attached 12 | . 9 3 Power 1 | . 1 . Engine 1 | . 1 . Core . | . . . Reactor . | . . . Propulsion 3 | . 2 1 Treads 2 | . 2 . Leg . | . . . Wheel 1 | . . 1 Hover . | . . . Flight . | . . . Utility 3 | . 3 . Device 2 | . 2 . Storage 1 | . 1 . Processor . | . . . Hackware . | . . . Protection . | . . . Artifact . | . . . Weapon 5 | . 3 2 Energy Gun 1 | . . 1 Energy Cannon . | . . . Ballistic Gun 2 | . 2 . Ballistic Cannon 1 | . . 1 Launcher 1 | . 1 . Special Weapon . | . . . Impact Weapon . | . . . Slashing Weapon . | . . . Piercing Weapon . | . . . Special Melee Weapon . | . . . Unidentified Prototypes . | . . . Parts Lost 9 | . . 9 Power 1 | . . 1 Propulsion 3 | . . 3 Utility 1 | . . 1 Weapon 4 | . . 4 Highest Loss Streak 3 | . . 3 To Critical Strikes . | . . . Average Backups 6 | 6 6 6 Power 1 | 1 1 2 Propulsion 1 | 4 1 . Utility 2 | . 2 3 Weapon 1 | 1 1 . Tool/Special . | . . . Unused Backups 10 | . 4 6 Power 3 | . . 3 Propulsion 4 | . 4 . Utility 3 | . . 3 Weapon . | . . . Tool/Special . | . . . Average Slot Usage (%) 84 | . 99 63 Engine 13 | . 14 12 Treads 7 | . 8 6 Leg 11 | . 19 . Wheel 4 | . . 9 Device 9 | . 13 3 Storage 14 | . 14 14 Energy Gun 5 | . 7 3 Ballistic Gun 13 | . 21 2 Ballistic Cannon 4 | . . 9 Peak Build Rating 8 | 6 7 8 Average Rating 6 | 6 6 5 On Entrance 6 | 6 6 7 Naked Turns . | . . . Heaviest Build 51 | 14 49 51 Greatest Support 40 | 20 40 40 Greatest Overweight (x) 14 | . 1 14 Average Overweight (x) 1 | . . 2 Largest Inventory Capacity 20 | 8 20 20 Average Capacity 14 | 8 11 20 Most Carried 8 | 6 8 7 Average Carried 6 | 6 6 6 Final Capacity 20 | 8 20 20 Final Carried 7 | 6 7 7 Class Distribution -------------------- 100% | Mutant Dominant Class ---------------- Mutant | -10/Materials Mutant | -10/Subcaves Resources | -11 -10 -10 ----------- Run | Yrd Mat Sub Matter Collected 341 | 155 133 53 Remotely . | . . . Salvage Created 428 | . 303 125 Parts 37 | . 29 8 Haulers Intercepted . | . . . Recyclers Shooed 1 | . 1 . Parts Field Recycled . | . . . Retrieved Matter . | . . . Parts Self-Destructed 6 | . . 6 Prevented . | . . . Kills | -11 -10 -10 ------- Run | Yrd Mat Sub Combat Hostiles Destroyed 17 | . 11 6 Guns 8 | . 7 1 Cannons 2 | . . 2 AOE 7 | . 4 3 Classes Destroyed 7 | . 5 2 Worker 2 | . 2 . Builder 3 | . 3 . Turret 2 | . . 2 Watcher 2 | . 2 . Swarmer 9 | . 6 3 Grunt 5 | . 5 . Subdweller 3 | . . 3 Best Kill Streak 12 | . 12 3 Combat Bots Only 5 | . 5 3 Max Kills in Single Turn 6 | . 6 2 Gunslinging . | . . . Exploded 2 | . 2 2 Melee . | . . . Uniques/NPCs Destroyed . | . . . Combat | -11 -10 -10 -------- Run | Yrd Mat Sub Hostile Shots Fired 102 | . 51 51 Missed 30 | . 14 16 Hits 72 | . 37 35 Projectile 72 | . 37 35 AOE 10 | . . 10 Damage Taken 1378 | . 410 968 Core 263 | . 86 177 Absorbed by Shields . | . . . Core Remaining (%) 100 | 100 . . Volleys Fired 67 | . 28 39 Largest 2 | . 2 2 Hottest 73 | . 60 73 Shots Fired 97 | . 53 44 Gun 66 | . 50 16 Cannon 23 | . . 23 Launcher 8 | . 3 5 Special . | . . . Kinetic 85 | . 47 38 Thermal . | . . . Explosive 8 | . 3 5 Electromagnetic 4 | . 3 1 Robot Hit Streak 8 | . 8 8 Robot Miss Streak 4 | . 4 1 Penetration Max . | . . . Secondary Targets 1 | . 1 . Max Gunslinging Chain 1 | . 1 . Shots Hit Robots 54 | . 25 29 Core Hits 38 | . 23 15 Critical Kills 2 | . 2 . Critical Parts Destroyed . | . . . Critical Strikes 3 | . 2 1 Destroy 2 | . 2 . Blast 1 | . . 1 Melee Attacks . | . . . Impact . | . . . Slashing . | . . . Piercing . | . . . Sneak Attacks . | . . . Combat Hostiles . | . . . Follow-up Attacks . | . . . Damage Inflicted 1465 | . 936 529 Guns 408 | . 279 129 Cannons 259 | . . 259 Explosions 798 | . 657 141 Melee . | . . . Ramming . | . . . Kinetic 645 | . 267 378 Thermal . | . . . Explosive 798 | . 657 141 Electromagnetic 22 | . 12 10 Impact . | . . . Slashing . | . . . Piercing . | . . . Highest Corruption . | . . . Average Corruption . | . . . Corruption Purged . | . . . Corruption Blocked . | . . . Overload Shots . | . . . Overflow Damage 54 | . 54 . Projectiles . | . . . Explosions 54 | . 54 . Melee . | . . . Knockbacks 4 | . . 4 Impact . | . . . Kinetic 4 | . . 4 Secondary . | . . . Self-Inflicted Damage 15 | . 9 6 Shots 2 | . 1 1 Rammed 1 | . . 1 Targets Rammed 1 | . . 1 Kicked . | . . . Crushed . | . . . Highest Temperature 18 | . 18 5 Average Temperature 8 | . 8 5 Received Heat Transfer 354 | . 195 159 Siege Activations . | . . . Martial Activations . | . . . Shielding Activations . | . . . Robots Disrupted . | . . . Combat Hostiles . | . . . Robots Corrupted . | . . . Combat Hostiles . | . . . Parts Fried . | . . . Impact Corruptions . | . . . Robots Melted . | . . . Combat Hostiles . | . . . Parts Melted . | . . . Heat Transferred . | . . . Parts Sabotaged . | . . . Parts Stolen . | . . . Parts Stripped . | . . . Power Chain Reactions . | . . . Alert | -11 -10 -10 ------- Run | Yrd Mat Sub Maximum Alert Level 2 | . 2 . Low Security (%) 49 | 100 48 . Level 1 14 | . 14 . Level 2 36 | . 36 . Level 3 . | . . . Level 4 . | . . . Level 5 . | . . . High Security . | . . . Max Security . | . . . Peak Influence 487 | . 487 . Initial . | . . . Average 219 | . 220 . Influence Increases 691 | . 576 115 Destroy 0b10 Robot/C 320 | . 220 100 Destroy 0b10 Robot/NC 35 | . 35 . Destroy Leader 44 | . 44 . Successful Hack 18 | . 18 . Disable Machine 195 | . 195 . Destroy Structure 49 | . 49 . Lose Combat Pursuer 30 | . 15 15 Influence Decreases 661 | . 169 492 Entered New Map 196 | . . 196 Time Decay 375 | . 169 206 Lost Part 90 | . . 90 Squads Dispatched 2 | . 2 . Investigation 2 | . 2 . Extermination . | . . . Reinforcement . | . . . Assault . | . . . Garrison . | . . . Intercept . | . . . Searches Triggered . | . . . Construction Impeded . | . . . Haulers Reinforced . | . . . Active Scanning Responses . | . . . Cargo Convoy Interrupts . | . . . Stealth | -11 -10 -10 --------- Run | Yrd Mat Sub Distress Signals 2 | . 2 . Communications Jammed . | . . . Distress Signals . | . . . Times Spotted 28 | . 13 15 Peak Tracking Total 6 | . 6 3 Tactical Retreats 2 | . 1 1 Traps | -11 -10 -10 ------- Run | Yrd Mat Sub Traps Triggered 2 | . 2 . Indirectly . | . . . Trap Hack Attempts . | . . . Triggered . | . . . Disarmed . | . . . Reprogrammed . | . . . Reused . | . . . Traps Extracted . | . . . Installed . | . . . Triggered . | . . . Machines | -11 -10 -10 ---------- Run | Yrd Mat Sub Machines Disabled 17 | . 13 4 Max in Single Turn 9 | . 9 3 Machines Repaired . | . . . Machines Dismantled . | . . . Machines Sabotaged . | . . . Overloaded Fab Kills . | . . . Hacking | -11 -10 -10 --------- Run | Yrd Mat Sub Machines Accessed 5 | . 5 . Terminals 5 | . 5 . Fabricators . | . . . Repair Stations . | . . . Recycling Units . | . . . Scanalyzers . | . . . Garrison Access . | . . . Total Hacks 11 | . 11 . Successful 9 | . 9 . Failed 2 | . 2 . Catastrophic . | . . . Database Lockouts . | . . . Manual . | . . . Terminals 11 | . 11 . Fabricators . | . . . Repair Stations . | . . . Recycling Units . | . . . Scanalyzers . | . . . Garrison Access . | . . . Terminal Hacks 9 | . 9 . Prototype ID Bank 2 | . 2 . Emergency Access Points 2 | . 2 . Locate Traps 1 | . 1 . Maintenance Status 1 | . 1 . Hauler Manifests 1 | . 1 . Zone Layout 2 | . 2 . Fabricator Hacks . | . . . Repair Station Hacks . | . . . Recycling Unit Hacks . | . . . Scanalyzer . | . . . Garrison Access Hacks . | . . . Unauthorized Hacks . | . . . Terminals . | . . . Fabricators . | . . . Repair Stations . | . . . Recycling Units . | . . . Scanalyzers . | . . . Garrison Access . | . . . Data Cores Recovered . | . . . Used . | . . . Hacking Detections 2 | . 2 . Full Trace Events . | . . . Feedback Events . | . . . Feedback Blocked . | . . . Robot Schematics Acquired . | . . . Robots Built . | . . . Authchips . | . . . Time . | . . . Total Robot Build Rating . | . . . Part Schematics Acquired . | . . . Parts Built . | . . . Authchips . | . . . Time . | . . . Total Part Build Rating . | . . . Parts Repaired . | . . . Time . | . . . Parts Recycled . | . . . Recycled Matter . | . . . Retrieved Matter . | . . . Retrieved Components . | . . . Parts Scanalyzed . | . . . Part Schematics Acquired . | . . . Parts Damaged . | . . . Bothacking | -11 -10 -10 ------------ Run | Yrd Mat Sub Used RIF Installer . | . . . Robots Hacked . | . . . Non-combat . | . . . Combat . | . . . Robot Hacks Applied . | . . . Relay Couplers Released . | . . . Fabnet Peak Effective % . | . . . Robots Rewired . | . . . Allies Hacked . | . . . Hacks Repelled . | . . . Allies | -11 -10 -10 -------- Run | Yrd Mat Sub Total Allies . | . . . Largest Group . | . . . Highest-Rated Group . | . . . Highest-Rated Ally . | . . . Total Orders . | . . . Ally Attacks . | . . . Total Damage . | . . . Kills . | . . . Allies Corrupted . | . . . Allies Melted . | . . . Intel | -11 -10 -10 ------- Run | Yrd Mat Sub Active Infowar (turns) 712 | . 623 89 Terrain 398 | . 309 89 Seismic 314 | . 314 . Robot Analysis Total . | . . . Derelict Logs Recovered . | . . . Drone Launches . | . . . Drone Recoveries . | . . . Exploration | -11 -10 -10 ------------- Run | Yrd Mat Sub Turns Passed 1062 | 3 634 425 Spaces Moved 451 | 3 236 212 Core 1 | . . 1 Treads 72 | . 48 24 Legs 191 | 3 188 . Wheels 187 | . . 187 Hover . | . . . Flight . | . . . Fastest Speed 120 | 120 120 130 Average Speed 148 | 120 144 153 Slowest Speed 750 | 120 240 750 Overloaded Moves . | . . . Propulsion Burnouts . | . . . Robots Hopped . | . . . Potential Cave-ins . | . . . Cave-ins Triggered . | . . . Exploration Rate (%) 26 | 1 59 18 Regions Visited 2 Branch Regions 1 Pre-discovered Areas . | . . . Known Exits Taken . | . . . Unknown Exits Taken 2 | 1 1 . Scrap Searched . | . . . Spaces Dug . | . . . Terrain Destroyed 65 | . 53 12 Melee . | . . . Projectile . | . . . AOE 65 | . 53 12 Terrain Rammed . | . . . Walls Destroyed . | . . . Machines Disabled . | . . . Actions | -11 -10 -10 --------- Run | Yrd Mat Sub Total 754 | 2 480 272 Wait 214 | . 200 14 Move 449 | 2 235 212 Hop . | . . . Pick Up 5 | . 3 2 Fast Attach 3 | . 2 1 Attach 2 | . . 2 Detach . | . . . Swap 8 | . 7 1 Drop 5 | . 5 . Fire 67 | . 28 39 Melee . | . . . Ram 1 | . . 1 Kick . | . . . Crush . | . . . Escape Stasis . | . . . Rewire . | . . . Trap . | . . . Miscellaneous . | . . . Route ------- -11/Scrapyard -10/Materials (discovered 4 exits: [*Mat] / [*Min x2] / [*Sub]) -10/Subcaves (discovered 1 exit: [*Rec]) History --------- Turn | Location | Event 1 | -11/Scrapyard | Discovered new exit (range 0) 4 | -11/Scrapyard | Entered Materials 106 | -10/Materials | Discovered new exit (range 15) 344 | -10/Materials | Discovered new exit (range 14) 350 | -10/Materials | Build established: Mutant 463 | -10/Materials | Discovered new exit (range 8) 627 | -10/Materials | Discovered new exit (range 4) 638 | -10/Materials | Entered Subcaves 641 | -10/Subcaves | Ambushed by Subdwellers from Twisted Machinery 700 | -10/Subcaves | Lost 3 parts (1n2w) 727 | -10/Subcaves | Discovered new exit (range 12) 777 | -10/Subcaves | Core integrity fell below 50% 781 | -10/Subcaves | Core integrity fell below 20% 1058 | -10/Subcaves | A Subdweller sparked back to life 1058 | -10/Subcaves | A Subdweller sparked back to life 1058 | -10/Subcaves | A Subdweller sparked back to life 1063 | -10/Subcaves | Destroyed by YE-G0N(R) with Subdweller Laser Last Messages --------------- 01017_ A2-MQV(R) Sub. Monowheel blasted off. 01018_ Ion Engine destroyed. 01021_ Slammed into A2-MQV(R). 01024_ Acquired 6 matter. 01026_ Subatomizers dissect the Sub. Monowheel. 01040_ A2-MQV(R) destroyed. 01043_ Acquired 34 matter. 01045_ Acquired 2 matter. 01048_ Subatomizers dissect the Sub. Monowheel. 01058_ YE-G0N(R) creaks and sparks as it begins to move. 01058_ PA-T50(R) creaks and sparks as it begins to move. 01058_ NY-Z6V(R) creaks and sparks as it begins to move. 01058_ Sub. Monowheel destroyed. 01061_ Subatomizers dissect the Sub. Monowheel, destroying it. 01062_ Battle Cannon destroyed. Map ----- +----------------------------------------------------+ | ???## #??# # ##??????????????????? | | ??## #?### ## #??????????????????? | | ### #?# # # ##??????????????????? | | ??# ### ## #??????????????????? | | ### ## ! ## #??????????????????? | | ## ##??????????????????? | | " #??????????????????? | | """ & ## # #??????????????????? | | ## " " %" ##" ##??????????????????? | | ###### &""""" ##" #???????????????????? | | #???# ##""""#### #???????????????????? | | # ##??# ## ####??## #???????????????????? | | "###???# ###??????## #???????????????????? | | ##???? ??????#?## ##??????????????????? | | ##? ###????# #??????????????????? | | ? # ##??# ##??????????????????? | | #### ##??????????????????? | | # ## #??????????????????? | | ### ### ### <<